[Event "*** Titled Tuesday Blitz"]
[Site "Chess.com"]
[Date "2021.02.16"]
[Round "7"]
[White "Vasily85"]
[Black "EvgenyRomanov"]
[Result "0-1"]
[WhiteElo "2438"]
[BlackElo "2611"]
[TimeControl "180+1"]
[EndTime "11:17:08 PST"]
[Termination "EvgenyRomanov won by resignation"]

1. d4 {[%clk 0:03:00.9]} 1... d5 {[%clk 0:02:59]} 2. Nc3 {[%clk 0:02:55.9]} 2...
Nf6 {[%clk 0:02:52.4]} 3. Bf4 {[%clk 0:02:56.1]} 3... c5 {[%clk 0:02:48.2]} 4.
e3 {[%clk 0:02:54.6]} 4... cxd4 {[%clk 0:02:48.1]} 5. exd4 {[%clk 0:02:55.5]}
5... a6 {[%clk 0:02:48.3]} 6. Nf3 {[%clk 0:02:51.4]} 6... Bg4 {[%clk 0:02:47.1]}
7. h3 {[%clk 0:02:49.4]} 7... Bxf3 {[%clk 0:02:43.9]} 8. Qxf3 {[%clk 0:02:50.3]}
8... Nc6 {[%clk 0:02:43.8]} 9. O-O-O {[%clk 0:02:47.7]} 9... e6 {[%clk
0:02:43.9]} 10. g4 {[%clk 0:02:37.3]} 10... Qb6 {[%clk 0:02:36]} 11. Be3 {[%clk
0:01:57.3]} 11... Bb4 {[%clk 0:02:31.9]} 12. Ne2 {[%clk 0:01:55.2]} 12... Rc8
{[%clk 0:02:22.4]} 13. Kb1 {[%clk 0:01:54.7]} 13... Na5 {[%clk 0:02:18.9]} 14.
Nc1 {[%clk 0:01:50.5]} 14... Nc4 {[%clk 0:02:11.1]} 15. Bxc4 {[%clk 0:01:40.7]}
15... Rxc4 {[%clk 0:02:07.3]} 16. Nd3 {[%clk 0:01:22.9]} 16... Ne4 {[%clk
0:02:02.6]} 17. Ka1 {[%clk 0:01:12.2]} 17... O-O {[%clk 0:01:46.8]} 18. Rc1
{[%clk 0:01:00.4]} 18... Rfc8 {[%clk 0:01:45.5]} 19. Ne5 {[%clk 0:00:46.3]}
19... R4c7 {[%clk 0:01:42.9]} 20. Qe2 {[%clk 0:00:42.2]} 20... Nc3 {[%clk
0:01:36.2]} 21. Qd3 {[%clk 0:00:42.2]} 21... Qa5 {[%clk 0:01:33.2]} 22. a3
{[%clk 0:00:10.5]} 22... Bxa3 {[%clk 0:01:29.4]} 23. bxc3 {[%clk 0:00:05.7]}
23... Rxc3 {[%clk 0:01:22.6]} 24. Qd2 {[%clk 0:00:04.8]} 24... Bxc1+ {[%clk
0:01:13]} 0-1

[Event "*** Titled Tuesday Blitz"]
[Site "Chess.com"]
[Date "2021.02.16"]
[Round "7"]
[White "Problematique_99"]
[Black "Supernotar"]
[Result "1-0"]
[WhiteElo "2463"]
[BlackElo "2736"]
[TimeControl "180+1"]
[EndTime "11:17:10 PST"]
[Termination "Problematique_99 won by resignation"]

1. e4 {[%clk 0:03:00.9]} 1... c6 {[%clk 0:02:58.4]} 2. Nf3 {[%clk 0:02:59.9]}
2... d5 {[%clk 0:02:58.3]} 3. d3 {[%clk 0:03:00.5]} 3... g6 {[%clk 0:02:54.9]}
4. Nbd2 {[%clk 0:02:58.2]} 4... Bg7 {[%clk 0:02:54.7]} 5. g3 {[%clk 0:02:58.6]}
5... e5 {[%clk 0:02:54]} 6. Bg2 {[%clk 0:02:58.8]} 6... Ne7 {[%clk 0:02:54.2]}
7. O-O {[%clk 0:02:59.1]} 7... O-O {[%clk 0:02:54.4]} 8. Re1 {[%clk 0:02:59.6]}
8... Nd7 {[%clk 0:02:54.5]} 9. b3 {[%clk 0:02:57]} 9... d4 {[%clk 0:02:54.2]}
10. Bb2 {[%clk 0:02:56.8]} 10... c5 {[%clk 0:02:54.5]} 11. a4 {[%clk 0:02:56]}
11... Nc6 {[%clk 0:02:54.3]} 12. Nc4 {[%clk 0:02:55.8]} 12... Qc7 {[%clk
0:02:54.4]} 13. Bc1 {[%clk 0:02:49.9]} 13... b6 {[%clk 0:02:53.9]} 14. Rf1
{[%clk 0:02:43.6]} 14... Bb7 {[%clk 0:02:54.2]} 15. Bh3 {[%clk 0:02:38.2]} 15...
Rae8 {[%clk 0:02:52.7]} 16. Bd2 {[%clk 0:02:33.9]} 16... a6 {[%clk 0:02:52.4]}
17. Nh4 {[%clk 0:02:30.7]} 17... b5 {[%clk 0:02:51.6]} 18. axb5 {[%clk
0:02:30.2]} 18... axb5 {[%clk 0:02:52.5]} 19. Na5 {[%clk 0:02:29.1]} 19... Nxa5
{[%clk 0:02:48.4]} 20. Rxa5 {[%clk 0:02:27.2]} 20... Bc6 {[%clk 0:02:47.5]} 21.
Qa1 {[%clk 0:02:19.9]} 21... Ra8 {[%clk 0:02:45.6]} 22. Rxa8 {[%clk 0:02:15.1]}
22... Rxa8 {[%clk 0:02:46.5]} 23. Qb2 {[%clk 0:02:14.9]} 23... Qa7 {[%clk
0:02:42.6]} 24. Rb1 {[%clk 0:02:14.4]} 24... Qa2 {[%clk 0:02:42]} 25. Nf3 {[%clk
0:02:06.1]} 25... Qxb2 {[%clk 0:02:41.7]} 26. Rxb2 {[%clk 0:02:06.6]} 26... Ra1+
{[%clk 0:02:41.8]} 27. Kg2 {[%clk 0:02:04.1]} 27... Nb6 {[%clk 0:02:33.6]} 28.
c3 {[%clk 0:01:54.7]} 28... dxc3 {[%clk 0:01:58.7]} 29. Bxc3 {[%clk 0:01:54.8]}
29... f6 {[%clk 0:01:59.1]} 30. b4 {[%clk 0:01:22.8]} 30... Bf8 {[%clk
0:01:35.1]} 31. Be6+ {[%clk 0:01:19.4]} 31... Kg7 {[%clk 0:01:34.8]} 32. bxc5
{[%clk 0:01:17.9]} 32... Bxc5 {[%clk 0:01:34]} 33. Rc2 {[%clk 0:01:16.4]} 33...
Rd1 {[%clk 0:01:24.9]} 34. Nxe5 {[%clk 0:01:10.8]} 34... Be8 {[%clk 0:01:16.4]}
35. Ng4 {[%clk 0:01:06.5]} 35... Be7 {[%clk 0:01:11.1]} 36. Bxf6+ {[%clk
0:00:54.9]} 36... Bxf6 {[%clk 0:01:11.3]} 37. Rc7+ {[%clk 0:00:54.7]} 37... Kf8
{[%clk 0:01:11.5]} 38. Nxf6 {[%clk 0:00:53.8]} 1-0

[Event "*** Titled Tuesday Blitz"]
[Site "Chess.com"]
[Date "2021.02.16"]
[Round "7"]
[White "exoticprincess"]
[Black "QuintilianoR"]
[Result "1-0"]
[WhiteElo "2909"]
[BlackElo "2704"]
[TimeControl "180+1"]
[EndTime "11:17:13 PST"]
[Termination "exoticprincess won by resignation"]

1. e4 {[%clk 0:03:00.9]} 1... c5 {[%clk 0:02:59.4]} 2. Nf3 {[%clk 0:03:00]} 2...
d6 {[%clk 0:02:57.7]} 3. d4 {[%clk 0:03:00.2]} 3... cxd4 {[%clk 0:02:58.6]} 4.
Nxd4 {[%clk 0:03:01.1]} 4... Nf6 {[%clk 0:02:58.8]} 5. Nc3 {[%clk 0:03:01.6]}
5... a6 {[%clk 0:02:59.3]} 6. g3 {[%clk 0:03:02.1]} 6... e5 {[%clk 0:02:59.2]}
7. Nf5 {[%clk 0:03:02.5]} 7... d5 {[%clk 0:02:51.2]} 8. Bg2 {[%clk 0:03:02.8]}
8... d4 {[%clk 0:02:49.5]} 9. Ne2 {[%clk 0:03:03.2]} 9... g6 {[%clk 0:02:37.4]}
10. Nh6 {[%clk 0:03:02.9]} 10... Ng4 {[%clk 0:02:25]} 11. Nxg4 {[%clk
0:03:01.2]} 11... Bxg4 {[%clk 0:02:25.9]} 12. O-O {[%clk 0:03:00.9]} 12... Nc6
{[%clk 0:02:24.7]} 13. h3 {[%clk 0:03:00.8]} 13... Be6 {[%clk 0:02:24]} 14. Bd2
{[%clk 0:03:00.7]} 14... Bg7 {[%clk 0:02:17.3]} 15. Kh2 {[%clk 0:02:59.7]} 15...
O-O {[%clk 0:02:12.4]} 16. f4 {[%clk 0:02:59.7]} 16... exf4 {[%clk 0:01:53.9]}
17. Nxf4 {[%clk 0:02:57.9]} 17... Bc4 {[%clk 0:01:52.4]} 18. Rf2 {[%clk
0:02:55.3]} 18... Ne5 {[%clk 0:01:44.5]} 19. b3 {[%clk 0:02:54]} 19... Be6
{[%clk 0:01:43.2]} 20. Qe2 {[%clk 0:02:52.7]} 20... Rc8 {[%clk 0:01:38.8]} 21.
Bb4 {[%clk 0:02:52.5]} 21... Re8 {[%clk 0:01:38.2]} 22. Raf1 {[%clk 0:02:52.7]}
22... Qb6 {[%clk 0:01:33.2]} 23. Qd2 {[%clk 0:02:46.4]} 23... Qc6 {[%clk
0:01:19.7]} 24. Nd5 {[%clk 0:02:44.6]} 24... Bxd5 {[%clk 0:01:16.4]} 25. exd5
{[%clk 0:02:45.5]} 25... Qd7 {[%clk 0:01:16]} 26. Kh1 {[%clk 0:02:32.4]} 26...
h5 {[%clk 0:01:11.5]} 27. a4 {[%clk 0:02:17.2]} 27... b6 {[%clk 0:00:54.5]} 28.
Qxd4 {[%clk 0:02:11.7]} 28... Ng4 {[%clk 0:00:46.8]} 29. Qxb6 {[%clk 0:02:11.6]}
29... Rb8 {[%clk 0:00:38.4]} 30. Qd6 {[%clk 0:02:10.2]} 30... Nxf2+ {[%clk
0:00:33.9]} 31. Rxf2 {[%clk 0:02:09.9]} 31... Qb7 {[%clk 0:00:27.5]} 32. Bd2
{[%clk 0:01:57.8]} 32... Be5 {[%clk 0:00:26]} 33. Qc6 {[%clk 0:01:57.3]} 33...
Qe7 {[%clk 0:00:22.4]} 34. Re2 {[%clk 0:01:40.1]} 34... Rbc8 {[%clk 0:00:20.4]}
35. d6 {[%clk 0:01:40.5]} 35... Rxc6 {[%clk 0:00:18.7]} 36. dxe7 {[%clk
0:01:41]} 36... Rxc2 {[%clk 0:00:18.5]} 37. Rxe5 {[%clk 0:01:41.4]} 37... Rxd2
{[%clk 0:00:16.2]} 38. Bc6 {[%clk 0:01:41.8]} 38... f6 {[%clk 0:00:16]} 39. Bxe8
{[%clk 0:01:40.6]} 39... fxe5 {[%clk 0:00:15.6]} 40. Bxg6 {[%clk 0:01:40.8]} 1-0

[Event "*** Titled Tuesday Blitz"]
[Site "Chess.com"]
[Date "2021.02.16"]
[Round "7"]
[White "onnoelgersma"]
[Black "AlexPapasimakopoulos"]
[Result "1-0"]
[WhiteElo "2458"]
[BlackElo "2609"]
[TimeControl "180+1"]
[EndTime "11:17:18 PST"]
[Termination "onnoelgersma won by resignation"]

1. e4 {[%clk 0:03:00.9]} 1... e6 {[%clk 0:03:00]} 2. Nf3 {[%clk 0:03:01.1]} 2...
d5 {[%clk 0:03:00.5]} 3. Nc3 {[%clk 0:03:02]} 3... Bb4 {[%clk 0:03:00.1]} 4. Qe2
{[%clk 0:03:01.9]} 4... d4 {[%clk 0:02:59.2]} 5. Nb1 {[%clk 0:02:54.6]} 5... c5
{[%clk 0:02:53.2]} 6. g3 {[%clk 0:02:54.8]} 6... Nc6 {[%clk 0:02:52.8]} 7. Bg2
{[%clk 0:02:55.3]} 7... Nge7 {[%clk 0:02:52.4]} 8. O-O {[%clk 0:02:55.6]} 8...
O-O {[%clk 0:02:52.4]} 9. d3 {[%clk 0:02:56]} 9... Ba5 {[%clk 0:02:51.4]} 10.
Nbd2 {[%clk 0:02:56.4]} 10... Bc7 {[%clk 0:02:50.9]} 11. a4 {[%clk 0:02:56]}
11... b6 {[%clk 0:02:49.8]} 12. Nh4 {[%clk 0:02:52.4]} 12... Bb7 {[%clk
0:02:48.4]} 13. f4 {[%clk 0:02:52.7]} 13... f6 {[%clk 0:02:45.4]} 14. f5 {[%clk
0:02:52.2]} 14... exf5 {[%clk 0:02:38.2]} 15. Nxf5 {[%clk 0:02:51.8]} 15... Nxf5
{[%clk 0:02:35]} 16. exf5 {[%clk 0:02:52.7]} 16... Na5 {[%clk 0:02:33]} 17. Ne4
{[%clk 0:02:49.7]} 17... Kh8 {[%clk 0:02:29.9]} 18. Bd2 {[%clk 0:02:47.3]} 18...
Nc6 {[%clk 0:02:29.1]} 19. Qh5 {[%clk 0:02:45.5]} 19... Qe8 {[%clk 0:02:27.8]}
20. Qh4 {[%clk 0:02:34.9]} 20... Qf7 {[%clk 0:02:17.7]} 21. Rae1 {[%clk
0:02:32.6]} 21... Be5 {[%clk 0:02:17.1]} 22. b3 {[%clk 0:02:30.2]} 22... Rfe8
{[%clk 0:02:15.1]} 23. g4 {[%clk 0:02:27.3]} 23... h6 {[%clk 0:01:58.7]} 24. g5
{[%clk 0:02:26.9]} 24... fxg5 {[%clk 0:01:58.6]} 25. Bxg5 {[%clk 0:02:25.9]}
25... Kg8 {[%clk 0:01:51.3]} 26. Bd2 {[%clk 0:02:23.1]} 26... Bf6 {[%clk
0:01:28.4]} 27. Qg3 {[%clk 0:02:18.1]} 27... Be5 {[%clk 0:01:17.2]} 28. Qg4
{[%clk 0:02:13.5]} 28... Kh7 {[%clk 0:00:56.2]} 29. f6 {[%clk 0:01:55.3]} 29...
Qg6 {[%clk 0:00:53.5]} 30. Qh4 {[%clk 0:01:51.1]} 30... gxf6 {[%clk 0:00:22.8]}
31. Rxf6 {[%clk 0:01:46.7]} 31... Bxf6 {[%clk 0:00:20.2]} 32. Nxf6+ {[%clk
0:01:45.1]} 32... Kg7 {[%clk 0:00:20.5]} 33. Nxe8+ {[%clk 0:01:39.4]} 33... Rxe8
{[%clk 0:00:21.4]} 34. Rxe8 {[%clk 0:01:38.7]} 34... Qxe8 {[%clk 0:00:22.3]} 35.
Qxh6+ {[%clk 0:01:38.8]} 35... Kf7 {[%clk 0:00:22.9]} 36. Bd5+ {[%clk
0:01:38.5]} 36... Ke7 {[%clk 0:00:23.2]} 37. Bg5+ {[%clk 0:01:38.3]} 37... Kd7
{[%clk 0:00:23.5]} 38. Qh3+ {[%clk 0:01:37.2]} 38... Kd6 {[%clk 0:00:23.3]} 39.
Be4 {[%clk 0:01:35.2]} 39... Ne5 {[%clk 0:00:23]} 40. Bxb7 {[%clk 0:01:34.3]}
40... Qg8 {[%clk 0:00:22.2]} 41. Qg3 {[%clk 0:01:34.1]} 41... Qg6 {[%clk
0:00:20.2]} 42. Bf4 {[%clk 0:01:32.2]} 42... Qf5 {[%clk 0:00:19.4]} 43. Bxe5+
{[%clk 0:01:32]} 43... Qxe5 {[%clk 0:00:20.3]} 1-0

[Event "*** Titled Tuesday Blitz"]
[Site "Chess.com"]
[Date "2021.02.16"]
[Round "7"]
[White "xberli"]
[Black "Vugar_Manafov"]
[Result "0-1"]
[WhiteElo "2498"]
[BlackElo "2660"]
[TimeControl "180+1"]
[EndTime "11:17:19 PST"]
[Termination "Vugar_Manafov won by resignation"]

1. b3 {[%clk 0:03:00.9]} 1... Nf6 {[%clk 0:02:59.7]} 2. Bb2 {[%clk 0:02:58.7]}
2... g6 {[%clk 0:02:59.9]} 3. c4 {[%clk 0:02:56.2]} 3... Bg7 {[%clk 0:02:59.5]}
4. Nf3 {[%clk 0:02:56.4]} 4... O-O {[%clk 0:02:59.1]} 5. g3 {[%clk 0:02:56.5]}
5... d6 {[%clk 0:02:58.1]} 6. Bg2 {[%clk 0:02:55.9]} 6... Nc6 {[%clk 0:02:56.1]}
7. O-O {[%clk 0:02:55.5]} 7... e5 {[%clk 0:02:55.9]} 8. d3 {[%clk 0:02:54.9]}
8... Nd7 {[%clk 0:02:53.2]} 9. Nc3 {[%clk 0:02:50.9]} 9... f5 {[%clk 0:02:53.1]}
10. a3 {[%clk 0:02:42.6]} 10... a5 {[%clk 0:02:51.6]} 11. Nd5 {[%clk 0:02:41.9]}
11... e4 {[%clk 0:02:40.6]} 12. Bxg7 {[%clk 0:02:37.9]} 12... exf3 {[%clk
0:02:40.5]} 13. Bxf8 {[%clk 0:02:37.6]} 13... fxg2 {[%clk 0:02:40.7]} 14. Bh6
{[%clk 0:02:22.7]} 14... gxf1=Q+ {[%clk 0:02:39.5]} 15. Qxf1 {[%clk 0:02:23.6]}
15... Nce5 {[%clk 0:02:32.3]} 16. h4 {[%clk 0:02:04.1]} 16... Nf7 {[%clk
0:02:28.6]} 17. Bd2 {[%clk 0:01:53.8]} 17... c6 {[%clk 0:02:25.4]} 18. Nf4
{[%clk 0:01:52.8]} 18... Nde5 {[%clk 0:02:22.5]} 19. d4 {[%clk 0:01:49.5]} 19...
Ng4 {[%clk 0:02:21.1]} 20. d5 {[%clk 0:01:49]} 20... c5 {[%clk 0:02:18.1]} 21.
Bc3 {[%clk 0:01:46.5]} 21... Nge5 {[%clk 0:02:15.4]} 22. h5 {[%clk 0:01:34.6]}
22... a4 {[%clk 0:02:04]} 23. hxg6 {[%clk 0:01:31.1]} 23... hxg6 {[%clk
0:02:04.9]} 24. Qh3 {[%clk 0:01:16.9]} 24... axb3 {[%clk 0:01:58.2]} 25. Kg2
{[%clk 0:01:16]} 25... Qf6 {[%clk 0:01:13.2]} 26. Bb2 {[%clk 0:01:08.9]} 26...
Qh8 {[%clk 0:01:10.8]} 27. Ne6 {[%clk 0:00:47]} 27... Qxh3+ {[%clk 0:01:09.6]}
28. Kxh3 {[%clk 0:00:46.6]} 28... Bxe6 {[%clk 0:01:09.8]} 29. dxe6 {[%clk
0:00:45.6]} 29... Ng5+ {[%clk 0:01:10]} 30. Kg2 {[%clk 0:00:45.8]} 30... Nxe6
{[%clk 0:01:10.1]} 31. Rh1 {[%clk 0:00:46.2]} 31... Ra4 {[%clk 0:00:59.1]} 32.
f4 {[%clk 0:00:43]} 32... Nxc4 {[%clk 0:00:59.1]} 33. Rh8+ {[%clk 0:00:43.1]}
33... Kf7 {[%clk 0:00:59.3]} 34. Rh7+ {[%clk 0:00:43.7]} 34... Ke8 {[%clk
0:00:59.7]} 35. Bc1 {[%clk 0:00:39.9]} 35... b2 {[%clk 0:00:56.6]} 0-1

[Event "*** Titled Tuesday Blitz"]
[Site "Chess.com"]
[Date "2021.02.16"]
[Round "7"]
[White "chessdjw"]
[Black "goldihouse"]
[Result "0-1"]
[WhiteElo "2703"]
[BlackElo "2565"]
[TimeControl "180+1"]
[EndTime "11:17:22 PST"]
[Termination "goldihouse won by resignation"]

1. e4 {[%clk 0:03:00.9]} 1... e6 {[%clk 0:02:58.5]} 2. d4 {[%clk 0:03:00.6]}
2... d5 {[%clk 0:02:59.4]} 3. Nc3 {[%clk 0:03:00.6]} 3... Nf6 {[%clk 0:02:59]}
4. e5 {[%clk 0:03:00.8]} 4... Nfd7 {[%clk 0:02:58.9]} 5. f4 {[%clk 0:03:01.4]}
5... c5 {[%clk 0:02:59.5]} 6. Nf3 {[%clk 0:03:02]} 6... Nc6 {[%clk 0:03:00.3]}
7. Be3 {[%clk 0:03:01.6]} 7... Be7 {[%clk 0:03:01.2]} 8. Qd2 {[%clk 0:03:01.5]}
8... O-O {[%clk 0:03:01.4]} 9. dxc5 {[%clk 0:03:01.3]} 9... Bxc5 {[%clk
0:02:55.2]} 10. O-O-O {[%clk 0:03:00.4]} 10... Bb4 {[%clk 0:02:40]} 11. a3
{[%clk 0:02:55.6]} 11... Ba5 {[%clk 0:02:37.3]} 12. Bd3 {[%clk 0:02:51.6]} 12...
f6 {[%clk 0:02:34.9]} 13. exf6 {[%clk 0:02:32.8]} 13... Qxf6 {[%clk 0:02:33.1]}
14. h4 {[%clk 0:02:06.1]} 14... Rd8 {[%clk 0:02:14.8]} 15. f5 {[%clk 0:01:58.3]}
15... Bxc3 {[%clk 0:02:04.8]} 16. bxc3 {[%clk 0:01:40.9]} 16... Qf8 {[%clk
0:02:00.7]} 17. fxe6 {[%clk 0:01:34.1]} 17... Qxa3+ {[%clk 0:01:59.9]} 18. Kb1
{[%clk 0:01:34.6]} 18... Nf6 {[%clk 0:02:00.8]} 19. Ng5 {[%clk 0:01:30.5]} 19...
h6 {[%clk 0:01:43.2]} 20. Rdf1 {[%clk 0:01:24]} 20... hxg5 {[%clk 0:01:33.3]}
21. hxg5 {[%clk 0:01:21.9]} 21... Ne4 {[%clk 0:01:33.6]} 22. Bxe4 {[%clk
0:01:12.8]} 22... dxe4 {[%clk 0:01:34.5]} 23. e7 {[%clk 0:00:25.3]} 23... Be6
{[%clk 0:01:34]} 24. exd8=Q+ {[%clk 0:00:12]} 24... Rxd8 {[%clk 0:01:32.4]} 25.
c4 {[%clk 0:00:08.2]} 25... Rxd2 {[%clk 0:01:27.3]} 26. Bxd2 {[%clk 0:00:07.1]}
26... Bxc4 {[%clk 0:01:26.9]} 27. Rh3 {[%clk 0:00:04.3]} 27... Qxh3 {[%clk
0:01:17.3]} 28. gxh3 {[%clk 0:00:03.4]} 28... Bxf1 {[%clk 0:01:17.1]} 29. h4
{[%clk 0:00:03.3]} 29... g6 {[%clk 0:01:10.7]} 0-1

[Event "*** Titled Tuesday Blitz"]
[Site "Chess.com"]
[Date "2021.02.16"]
[Round "7"]
[White "AttilaTurzo"]
[Black "MaxLeto"]
[Result "1-0"]
[WhiteElo "2493"]
[BlackElo "2344"]
[TimeControl "180+1"]
[EndTime "11:17:23 PST"]
[Termination "AttilaTurzo won on time"]

1. d4 {[%clk 0:03:00.9]} 1... d5 {[%clk 0:02:52.2]} 2. Bf4 {[%clk 0:03:00.5]}
2... c5 {[%clk 0:02:51.2]} 3. e3 {[%clk 0:03:00.9]} 3... Nc6 {[%clk 0:02:50.9]}
4. c3 {[%clk 0:03:01.2]} 4... Qb6 {[%clk 0:02:48.7]} 5. Qb3 {[%clk 0:03:01.4]}
5... c4 {[%clk 0:02:48.3]} 6. Qc2 {[%clk 0:03:01.4]} 6... Bf5 {[%clk 0:02:46.9]}
7. Qxf5 {[%clk 0:03:01.3]} 7... Qxb2 {[%clk 0:02:46.8]} 8. Qxd5 {[%clk 0:03:01]}
8... Qxa1 {[%clk 0:02:39.2]} 9. Qb5 {[%clk 0:03:01.1]} 9... O-O-O {[%clk
0:02:23.3]} 10. Bxc4 {[%clk 0:02:59.6]} 10... e5 {[%clk 0:01:36.9]} 11. Nf3
{[%clk 0:01:47.5]} 11... exf4 {[%clk 0:01:24.1]} 12. O-O {[%clk 0:01:47.7]}
12... Bd6 {[%clk 0:00:53.3]} 13. Bxf7 {[%clk 0:01:39.8]} 13... Nf6 {[%clk
0:00:44.8]} 14. Qb3 {[%clk 0:01:26.5]} 14... fxe3 {[%clk 0:00:35.1]} 15. fxe3
{[%clk 0:01:22.9]} 15... Rhf8 {[%clk 0:00:04.6]} 16. Nbd2 {[%clk 0:01:19.6]}
16... Qxf1+ {[%clk 0:00:04.1]} 17. Kxf1 {[%clk 0:01:15.7]} 17... Kb8 {[%clk
0:00:04.6]} 18. Kg1 {[%clk 0:01:14.1]} 18... Ng4 {[%clk 0:00:05]} 19. e4 {[%clk
0:01:12.2]} 19... Bc7 {[%clk 0:00:04.3]} 20. e5 {[%clk 0:01:11.5]} 20... Ne3
{[%clk 0:00:03.5]} 21. Be6 {[%clk 0:01:07.9]} 21... Nf5 {[%clk 0:00:02.4]} 22.
Bxf5 {[%clk 0:01:07.5]} 22... Rxf5 {[%clk 0:00:02.4]} 23. Qe6 {[%clk 0:01:07]}
23... Rdf8 {[%clk 0:00:02.3]} 24. Ne4 {[%clk 0:01:06.5]} 24... h6 {[%clk
0:00:01.9]} 25. Nc5 {[%clk 0:01:06.5]} 25... Ka8 {[%clk 0:00:01.2]} 26. Qd7
{[%clk 0:01:05.3]} 1-0

[Event "*** Titled Tuesday Blitz"]
[Site "Chess.com"]
[Date "2021.02.16"]
[Round "7"]
[White "ChelsieMonica"]
[Black "m_ezat"]
[Result "0-1"]
[WhiteElo "2330"]
[BlackElo "2488"]
[TimeControl "180+1"]
[EndTime "11:17:24 PST"]
[Termination "m_ezat won by resignation"]

1. c4 {[%clk 0:02:46.1]} 1... Nf6 {[%clk 0:02:57]} 2. Nf3 {[%clk 0:02:45]} 2...
g6 {[%clk 0:02:56.7]} 3. g3 {[%clk 0:02:44.6]} 3... Bg7 {[%clk 0:02:55.8]} 4.
Bg2 {[%clk 0:02:44.3]} 4... O-O {[%clk 0:02:52.1]} 5. O-O {[%clk 0:02:43.4]}
5... c5 {[%clk 0:02:45.9]} 6. Nc3 {[%clk 0:02:42.4]} 6... d5 {[%clk 0:02:45.7]}
7. cxd5 {[%clk 0:02:42.2]} 7... Nxd5 {[%clk 0:02:46.3]} 8. Nxd5 {[%clk
0:02:39.4]} 8... Qxd5 {[%clk 0:02:45.6]} 9. d3 {[%clk 0:02:39.1]} 9... Nc6
{[%clk 0:02:43.2]} 10. Rb1 {[%clk 0:02:37.7]} 10... Qxa2 {[%clk 0:02:41.7]} 11.
Be3 {[%clk 0:02:36.6]} 11... Nd4 {[%clk 0:02:25]} 12. b4 {[%clk 0:02:25.3]}
12... Nxe2+ {[%clk 0:02:21.8]} 13. Kh1 {[%clk 0:02:14.3]} 13... Nc3 {[%clk
0:02:16.2]} 14. Qb3 {[%clk 0:02:14.4]} 14... cxb4 {[%clk 0:02:10.3]} 15. Qxa2
{[%clk 0:01:58.1]} 15... Nxa2 {[%clk 0:02:08.3]} 16. Nd4 {[%clk 0:01:57.4]}
16... a5 {[%clk 0:02:01.9]} 17. Rb2 {[%clk 0:01:55.5]} 17... Nc3 {[%clk
0:01:57.4]} 18. Ra1 {[%clk 0:01:51.5]} 18... Ra6 {[%clk 0:01:40.5]} 19. Rb3
{[%clk 0:01:46.8]} 19... e5 {[%clk 0:01:27.9]} 20. Nc2 {[%clk 0:01:42.2]} 20...
Be6 {[%clk 0:01:13.4]} 21. Rb2 {[%clk 0:01:39.8]} 21... Rb8 {[%clk 0:01:10.2]}
22. d4 {[%clk 0:01:35.3]} 22... exd4 {[%clk 0:01:07.1]} 23. Nxd4 {[%clk
0:01:36.2]} 23... Bd5 {[%clk 0:01:00.3]} 24. f3 {[%clk 0:01:33.1]} 24... Nb5
{[%clk 0:00:56.3]} 25. Nxb5 {[%clk 0:01:29.2]} 25... Bxb2 {[%clk 0:00:55.3]} 26.
Rb1 {[%clk 0:01:28.7]} 26... Be5 {[%clk 0:00:49.9]} 27. f4 {[%clk 0:01:25.9]}
27... Bxg2+ {[%clk 0:00:49]} 28. Kxg2 {[%clk 0:01:26.8]} 28... Bf6 {[%clk
0:00:49.2]} 29. Nc7 {[%clk 0:01:25.7]} 29... Rc6 {[%clk 0:00:48.4]} 30. Nd5
{[%clk 0:01:25.5]} 30... Bd8 {[%clk 0:00:48.1]} 31. Bd4 {[%clk 0:01:20.7]} 31...
Rd6 {[%clk 0:00:36.2]} 32. Be5 {[%clk 0:01:20.3]} 32... Rxd5 {[%clk 0:00:35.5]}
33. Bxb8 {[%clk 0:01:18.2]} 33... Be7 {[%clk 0:00:35.5]} 34. Rc1 {[%clk
0:01:15.3]} 34... a4 {[%clk 0:00:32.7]} 35. Rc8+ {[%clk 0:01:14.7]} 35... Rd8
{[%clk 0:00:32.7]} 36. Rc7 {[%clk 0:01:12.8]} 36... Rxb8 {[%clk 0:00:31.3]} 0-1

[Event "*** Titled Tuesday Blitz"]
[Site "Chess.com"]
[Date "2021.02.16"]
[Round "7"]
[White "HElissalt"]
[Black "vladgoncharov"]
[Result "0-1"]
[WhiteElo "2205"]
[BlackElo "2468"]
[TimeControl "180+1"]
[EndTime "11:17:25 PST"]
[Termination "vladgoncharov won by resignation"]

1. d4 {[%clk 0:03:00.9]} 1... Nf6 {[%clk 0:02:57.8]} 2. c4 {[%clk 0:02:59.3]}
2... e6 {[%clk 0:02:58.3]} 3. Nf3 {[%clk 0:02:58.4]} 3... Bb4+ {[%clk
0:02:57.3]} 4. Bd2 {[%clk 0:02:57.6]} 4... a5 {[%clk 0:02:54]} 5. g3 {[%clk
0:02:45.6]} 5... b6 {[%clk 0:02:53.2]} 6. Bg2 {[%clk 0:02:41.1]} 6... Bb7 {[%clk
0:02:53.5]} 7. O-O {[%clk 0:02:34.2]} 7... O-O {[%clk 0:02:45.9]} 8. Bg5 {[%clk
0:02:16.8]} 8... Be7 {[%clk 0:02:44.2]} 9. Nc3 {[%clk 0:02:01.8]} 9... Ne4
{[%clk 0:02:40.2]} 10. Bxe7 {[%clk 0:01:55.9]} 10... Qxe7 {[%clk 0:02:38.3]} 11.
Qc2 {[%clk 0:01:26.4]} 11... Nxc3 {[%clk 0:02:31.4]} 12. Qxc3 {[%clk 0:01:20.6]}
12... Na6 {[%clk 0:02:20.8]} 13. Rfd1 {[%clk 0:00:53.7]} 13... h6 {[%clk
0:02:09.9]} 14. b3 {[%clk 0:00:53.7]} 14... d6 {[%clk 0:02:08.9]} 15. a3 {[%clk
0:00:52.5]} 15... Rfd8 {[%clk 0:01:47.2]} 16. e3 {[%clk 0:00:45]} 16... c5
{[%clk 0:01:38.3]} 17. Rd2 {[%clk 0:00:44.4]} 17... Rac8 {[%clk 0:01:33]} 18.
Rc1 {[%clk 0:00:43.1]} 18... d5 {[%clk 0:01:24.8]} 19. Qb2 {[%clk 0:00:39.3]}
19... cxd4 {[%clk 0:01:11.8]} 20. exd4 {[%clk 0:00:31]} 20... dxc4 {[%clk
0:01:11.2]} 21. bxc4 {[%clk 0:00:30.4]} 21... Qc7 {[%clk 0:01:08.2]} 22. Rdc2
{[%clk 0:00:19]} 22... Rb8 {[%clk 0:01:07.7]} 23. Rb1 {[%clk 0:00:18.6]} 23...
Be4 {[%clk 0:01:07.9]} 24. Ne5 {[%clk 0:00:15.3]} 24... Bxc2 {[%clk 0:01:04.8]}
25. Qxc2 {[%clk 0:00:15.2]} 25... Rd6 {[%clk 0:00:53.2]} 26. Nc6 {[%clk
0:00:14]} 26... Rxc6 {[%clk 0:00:52.8]} 0-1